[Event "FIDE Chesscom Grand Swiss 2019"]
[Site "Douglas-Isle of Man"]
[Date "2019.10.20"]
[Round "10.25"]
[White "Durarbayli, Vasif"]
[Black "Soumya, Swaminathan"]
[Result "1-0"]
[ECO "B56"]
[WhiteElo "2617"]
[BlackElo "2365"]
[Annotator "ChessBase"]
[PlyCount "119"]
[EventDate "2019.10.10"]
[EventType "swiss"]
[EventCountry "GBR"]
[SourceTitle "playchess.com"]
[Source "ChessBase"]
[SourceQuality "1"]
[TimeControl "40/6000+30:20/3000+30:900+30"]

1. e4 {[%emt 0:01:33]} c5 {[%emt 0:00:00]} 2. Nf3 {[%emt 0:00:06]} Nc6 {[%emt 0:00:00]} 3. d4 {[%emt 0:00:08]} cxd4 {[%emt 0:00:00]} 4. Nxd4 {[%emt 0:00:13]} Nf6 {[%emt 0:00:00]} 5. Nc3 {[%emt 0:00:04]} d6 {[%emt 0:00:00]} 6. f3 {[%emt 0:00:27]} e5 {[%emt 0:03:55]} 7. Nb3 {[%emt 0:00:15]} Be7 {[%emt 0:00:31]} 8. Be3 {[%emt 0:00:06]} O-O {[%emt 0:00:51]} 9. Qd2 {[%emt 0:00:05]} a5 {[%emt 0:01:04]} 10. Bb5 {[%emt 0:00:06]} Na7 {[%emt 0:06:31]} 11. Bxa7 {[%emt 0:00:14]} Rxa7 {[%emt 0:00:02]} 12. O-O-O {[%emt 0:00:21]} Qb6 {[%emt 0:13:44]} 13. Qe2 {[%emt 0:06:05]} Be6 {[%emt 0:05:00]} 14. Kb1 {[%emt 0:01:52]} Raa8 {[%emt 0:10:18]} 15. Na4 {[%emt 0:10:43]} Qa7 {[%emt 0:03:03]} 16. Rhe1 {[%emt 0:05:47]} Ne8 {[%emt 0:22:46]} 17. Nc3 {[%emt 0:02:07]} Nc7 {[%emt 0:01:11]} 18. a4 {[%emt 0:00:06]} Nxb5 {[%emt 0:11:10]} 19. Qxb5 {[%emt 0:00:34]} g6 {[%emt 0:19:58]} 20. Nd5 {[%emt 0:02:14]} Bd8 {[%emt 0:00:02]} 21. Nd2 {[%emt 0:02:23]} Rc8 {[%emt 0:01:08]} 22. Qd3 {[%emt 0:02:00]} Qc5 {[%emt 0:01:43]} 23. Nb3 {[%emt 0:01:16]} Qc4 {[%emt 0:00:28]} 24. Nc3 {[%emt 0:00:26]} Rc6 {[%emt 0:04:45]} 25. Qxc4 {[%emt 0:01:41]} Bxc4 {[%emt 0:00:02]} 26. Nb5 {[%emt 0:00:14]} b6 {[%emt 0:03:47]} 27. Nxd6 {[%emt 0:00:41]} Be6 {[%emt 0:00:07]} 28. Nc1 {[%emt 0:01:43]} Be7 {[%emt 0:00:11]} 29. Nb5 {[%emt 0:00:08]} Bb4 {[%emt 0:00:46]} 30. Re3 {[%emt 0:00:48]} f6 {[%emt 0:00:41]} 31. Red3 {[%emt 0:01:19]} Be7 {[%emt 0:00:17]} 32. Rc3 {[%emt 0:00:20]} Rfc8 {[%emt 0:01:10]} 33. Rxc6 {[%emt 0:00:31]} Rxc6 {[%emt 0:00:03]} 34. Ne2 {[%emt 0:00:06]} Kf7 {[%emt 0:00:25]} 35. Nec3 {[%emt 0:00:17]} f5 {[%emt 0:00:56]} 36. b3 {[%emt 0:00:38]} h5 {[%emt 0:00:30]} 37. Nd5 {[%emt 0:00:21]} Bc5 {[%emt 0:00:50]} 38. h3 {[%emt 0:03:01]} h4 {[%emt 0:00:17]} 39. Ndc7 {[%emt 0:00:37]} fxe4 {[%emt 0:00:37]} 40. fxe4 {[%emt 0:00:07]} Ke7 {[%emt 0:00:36]} 41. Nxe6 {[%emt 0:51:28]} Kxe6 {[%emt 0:09:06]} 42. Nc3 {[%emt 0:00:00]} Rc8 {[%emt 0:20:04]} 43. Rf1 {[%emt 0:00:00]} Rf8 {[%emt 0:10:01]} 44. Rxf8 {[%emt 0:00:00]} Bxf8 {[%emt 0:00:02]} 45. Nd5 {[%emt 0:00:00]} Bc5 {[%emt 0:00:11]} 46. Kb2 {[%emt 0:00:00]} Kd6 {[%emt 0:02:03]} 47. Kc3 {[%emt 0:00:00]} g5 {[%emt 0:01:01]} 48. Kc4 {[%emt 0:00:00]} Kc6 {[%emt 0:00:05]} 49. Nf6 {[%emt 0:00:00]} Bf2 {[%emt 0:03:36]} 50. Ng4 {[%emt 0:00:00]} Bg3 {[%emt 0:00:08]} 51. Nh6 {[%emt 0:00:00]} Bh2 {[%emt 0:00:34]} 52. Nf7 {[%emt 0:00:00]} Bf4 {[%emt 0:00:21]} 53. c3 {[%emt 0:00:00]} Bh2 {[%emt 0:01:50]} 54. Nxg5 {[%emt 0:00:00]} Bf4 {[%emt 0:00:25]} 55. Nf3 {[%emt 0:00:00]} Bg3 {[%emt 0:00:03]} 56. b4 {[%emt 0:00:00]} axb4 {[%emt 0:03:58]} 57. cxb4 {[%emt 0:00:00]} Kd6 {[%emt 0:00:53]} 58. Kb5 {[%emt 0:00:00]} Kc7 {[%emt 0:00:09]} 59. Ka6 {[%emt 0:00:00]} Kc6 {[%emt 0:00:19]} 60. b5+ {[%emt 0:00:00] Kd5} 1-0

[Event "FIDE Chesscom Grand Swiss 2019"]
[Site "Douglas-Isle of Man"]
[Date "2019.10.20"]
[Round "10.27"]
[White "Atalik, Ekaterina"]
[Black "Demchenko, Anton"]
[Result "0-1"]
[ECO "E81"]
[WhiteElo "2464"]
[BlackElo "2655"]
[Annotator "RC"]
[PlyCount "54"]
[EventDate "2019.10.10"]
[EventType "swiss"]
[EventCountry "GBR"]
[SourceTitle "playchess.com"]
[Source "ChessBase"]
[SourceQuality "1"]
[TimeControl "40/6000+30:20/3000+30:900+30"]

1. d4 {[%emt 0:00:00]} Nf6 {[%emt 0:00:00]} 2. c4 {[%emt 0:00:01]} g6 {[%emt 0:00:10]} 3. Nc3 {[%emt 0:00:21]} Bg7 {[%emt 0:00:05]} 4. e4 {[%emt 0:00:18]} O-O {[%emt 0:00:13]} 5. f3 {[%emt 0:02:05]} d6 {[%emt 0:00:33]} 6. Be3 {[%emt 0:00:42]} a6 {[%emt 0:02:04]} 7. Nge2 {[%emt 0:01:22]} Nbd7 {[%emt 0:02:45]} 8. Qd2 {[%emt 0:05:03]} b5 {[%emt 0:01:28]} 9. cxb5 {[%emt 0:01:32]} axb5 {[%emt 0:00:05]} 10. Nxb5 {[%emt 0:01:16]} c6 {[%emt 0:00:08]} 11. Na3 {[%emt 0:05:00]} e5 {[%emt 0:01:12]} 12. Nc3 {[%emt 0:10:42]} d5 {[%emt 0:04:45]} 13. dxe5 {[%emt 0:21:52]} Nxe5 {[%emt 0:01:07]} 14. O-O-O {[%emt 0:18:52]} Be6 {[%emt 0:05:02]} 15. Bd4 {[%emt 0:04:11]} Qb8 {[%emt 0:10:26]} 16. f4 {[%emt 0:05:53]} Ned7 {[%emt 0:00:40]} 17. f5 {[%emt 0:06:17]} gxf5 {[%emt 0:01:09]} 18. exd5 {[%emt 0:00:22]} cxd5 {[%emt 0:00:51]} 19. Bd3 {[%emt 0:03:15]} Ne5 {[%emt 0:02:24]} 20. Nc2 {[%emt 0:11:33]} Ne4 {[%emt 0:03:11]} 21. Qe1 {[%emt 0:02:30]} Rc8 {[%emt 0:04:10]} 22. a3 {[%emt 0:03:28]} Qb3 {[%emt 0:09:48]} 23. Bxe4 {[%emt 0:01:12]} dxe4 {[%emt 0:06:42]} 24. Qg3 {[%emt 0:03:10]} f4 {[%emt 0:00:26]} 25. Qxf4 {[%emt 0:00:42]} Nd3+ {[%emt 0:05:25]} 26. Rxd3 {[%emt 0:00:05]} exd3 {[%emt 0:00:03]} 27. Ne3 {[%emt 0:00:33]} Ra4 {[%emt 0:01:09]} 0-1

[Event "FIDE Chesscom Grand Swiss 2019"]
[Site "Douglas-Isle of Man"]
[Date "2019.10.20"]
[Round "10.28"]
[White "Bulmaga, Irina"]
[Black "Piorun, Kacper"]
[Result "0-1"]
[ECO "B11"]
[WhiteElo "2442"]
[BlackElo "2643"]
[Annotator "ChessBase"]
[PlyCount "84"]
[EventDate "2019.10.10"]
[EventType "swiss"]
[EventCountry "GBR"]
[SourceTitle "playchess.com"]
[Source "ChessBase"]
[SourceQuality "1"]
[TimeControl "40/6000+30:20/3000+30:900+30"]

1. e4 {[%emt 0:00:00]} c6 {[%emt 0:00:00]} 2. Nc3 {[%emt 0:00:00]} d5 {[%emt 0:00:00]} 3. Nf3 {[%emt 0:00:00]} dxe4 {[%emt 0:00:00]} 4. Nxe4 {[%emt 0:00:02]} Nf6 {[%emt 0:00:00]} 5. Qe2 {[%emt 0:01:31]} Bf5 {[%emt 0:00:00]} 6. Nxf6+ {[%emt 0:05:15]} gxf6 {[%emt 0:00:02]} 7. d4 {[%emt 0:02:58]} e6 {[%emt 0:00:08]} 8. g3 {[%emt 0:07:47]} Nd7 {[%emt 0:04:52]} 9. Bg2 {[%emt 0:01:57]} Bg7 {[%emt 0:00:42]} 10. O-O {[%emt 0:07:27]} O-O {[%emt 0:00:05]} 11. Nh4 {[%emt 0:02:58]} Bg6 {[%emt 0:00:04]} 12. c3 {[%emt 0:04:37]} Re8 {[%emt 0:03:24]} 13. f4 {[%emt 0:00:38]} f5 {[%emt 0:00:14]} 14. Be3 {[%emt 0:01:36]} Nf6 {[%emt 0:03:08]} 15. Bf3 {[%emt 0:04:13]} Qc7 {[%emt 0:03:29]} 16. Rac1 {[%emt 0:10:14]} a5 {[%emt 0:01:40]} 17. c4 {[%emt 0:07:27]} a4 {[%emt 0:02:01]} 18. Kg2 {[%emt 0:00:18]} Rad8 {[%emt 0:03:40]} 19. Rfd1 {[%emt 0:04:42]} Qa5 {[%emt 0:06:21]} 20. Bd2 {[%emt 0:06:02]} Qa6 {[%emt 0:01:36]} 21. Be3 {[%emt 0:02:36]} Rd7 {[%emt 0:02:09]} 22. Rc2 {[%emt 0:01:09]} Red8 {[%emt 0:01:11]} 23. Bg1 {[%emt 0:01:44]} Qa5 {[%emt 0:03:42]} 24. Rcd2 {[%emt 0:09:44]} Qb4 {[%emt 0:06:52]} 25. h3 {[%emt 0:01:36]} Ne4 {[%emt 0:12:31]} 26. Bxe4 {[%emt 0:01:06]} fxe4 {[%emt 0:00:03]} 27. Be3 {[%emt 0:06:48]} f5 {[%emt 0:00:52]} 28. Nxg6 {[%emt 0:01:59]} hxg6 {[%emt 0:00:01]} 29. h4 {[%emt 0:00:22]} Kf7 {[%emt 0:03:51]} 30. h5 {[%emt 0:02:56]} b5 {[%emt 0:04:42]} 31. hxg6+ {[%emt 0:01:58]} Kxg6 {[%emt 0:00:02]} 32. Rh1 {[%emt 0:04:16]} Rh8 {[%emt 0:00:06]} 33. cxb5 {[%emt 0:03:46]} Qxb5 {[%emt 0:02:45]} 34. Qd1 {[%emt 0:02:12]} Rxh1 {[%emt 0:00:23]} 35. Kxh1 {[%emt 0:00:22]} Rd8 {[%emt 0:02:26]} 36. Kg1 {[%emt 0:00:12]} Bf6 {[%emt 0:01:22]} 37. g4 {[%emt 0:02:34]} fxg4 {[%emt 0:03:38]} 38. Qxg4+ {[%emt 0:00:01]} Kf7 {[%emt 0:00:08]} 39. Rg2 {[%emt 0:00:57]} Qf5 {[%emt 0:04:27]} 40. Qd1 {[%emt 0:01:51]} Qh3 {[%emt 0:19:39]} 41. Qe1 {[%emt 0:19:05]} Rh8 {[%emt 0:00:42]} 42. Kf1 {[%emt 0:04:41]} Rg8 {[%emt 0:00:16]} 0-1

[Event "FIDE Chesscom Grand Swiss 2019"]
[Site "Douglas-Isle of Man"]
[Date "2019.10.20"]
[Round "10.29"]
[White "Ushenina, Anna"]
[Black "Bachmann, Axel"]
[Result "0-1"]
[ECO "E11"]
[WhiteElo "2431"]
[BlackElo "2629"]
[Annotator "ChessBase"]
[PlyCount "92"]
[EventDate "2019.10.10"]
[EventType "swiss"]
[EventCountry "GBR"]
[SourceTitle "playchess.com"]
[Source "ChessBase"]
[SourceQuality "1"]
[TimeControl "40/6000+30:20/3000+30:900+30"]

1. d4 {[%emt 0:00:00]} Nf6 {[%emt 0:01:09]} 2. c4 {[%emt 0:00:00]} e6 {[%emt 0:00:04]} 3. g3 {[%emt 0:00:05]} Bb4+ {[%emt 0:00:09]} 4. Bd2 {[%emt 0:00:07]} a5 {[%emt 0:00:04]} 5. Bg2 {[%emt 0:00:24]} O-O {[%emt 0:00:41]} 6. Nf3 {[%emt 0:00:14]} d5 {[%emt 0:00:07]} 7. O-O {[%emt 0:00:40]} dxc4 {[%emt 0:00:07]} 8. Qc2 {[%emt 0:00:35]} Bxd2 {[%emt 0:00:26]} 9. Nbxd2 {[%emt 0:08:08]} b5 {[%emt 0:00:50]} 10. a4 {[%emt 0:00:41]} c6 {[%emt 0:00:11]} 11. b3 {[%emt 0:00:36]} cxb3 {[%emt 0:00:26]} 12. Nxb3 {[%emt 0:00:46]} Ba6 {[%emt 0:10:29]} 13. Rfc1 {[%emt 0:29:55]} bxa4 {[%emt 0:03:18]} 14. Rxa4 {[%emt 0:03:37]} Bb5 {[%emt 0:00:08]} 15. Ra3 {[%emt 0:00:10]} Nbd7 {[%emt 0:01:23]} 16. e3 {[%emt 0:03:39]} a4 {[%emt 0:02:30]} 17. Nc5 {[%emt 0:00:30]} Qe7 {[%emt 0:00:37]} 18. Ng5 {[%emt 0:05:25]} Rad8 {[%emt 0:07:13]} 19. Nxd7 {[%emt 0:04:58]} Rxd7 {[%emt 0:00:37]} 20. Qb2 {[%emt 0:00:04]} h6 {[%emt 0:20:57]} 21. Nf3 {[%emt 0:05:55]} Rb7 {[%emt 0:00:50]} 22. Ne5 {[%emt 0:04:19]} Nd5 {[%emt 0:01:35]} 23. Qa1 {[%emt 0:03:49]} Rfb8 {[%emt 0:01:23]} 24. Be4 {[%emt 0:03:35]} Rc7 {[%emt 0:02:26]} 25. Rc5 {[%emt 0:02:00]} Nb4 {[%emt 0:06:23]} 26. Rac3 {[%emt 0:07:26]} Rb6 {[%emt 0:04:00]} 27. Nc4 {[%emt 0:03:18]} Rb8 {[%emt 0:00:33]} 28. Ne5 {[%emt 0:00:13]} Rbc8 {[%emt 0:00:43]} 29. Bh7+ {[%emt 0:21:46]} Kh8 {[%emt 0:01:53]} 30. Bg6 {[%emt 0:00:12]} f6 {[%emt 0:00:23]} 31. Nd3 {[%emt 0:01:28]} Na6 {[%emt 0:02:29]} 32. Rh5 {[%emt 0:00:01]} Kg8 {[%emt 0:00:13]} 33. Nc5 {[%emt 0:00:48]} f5 {[%emt 0:03:17]} 34. Nxa6 {[%emt 0:00:35]} Bxa6 {[%emt 0:00:06]} 35. e4 {[%emt 0:00:47]} c5 {[%emt 0:01:38]} 36. d5 {[%emt 0:00:00]} Qf6 {[%emt 0:00:07]} 37. exf5 {[%emt 0:00:18]} exd5 {[%emt 0:00:07]} 38. Qxa4 {[%emt 0:00:20]} Qxc3 {[%emt 0:01:39]} 39. Qxa6 {[%emt 0:00:01]} Qf6 {[%emt 0:00:36]} 40. Qa2 {[%emt 0:00:03]} c4 {[%emt 0:00:30]} 41. g4 {[%emt 0:50:02]} Qd4 {[%emt 0:51:38]} 42. h3 {[%emt 0:00:40]} c3 {[%emt 0:00:35]} 43. f6 {[%emt 0:00:25]} c2 {[%emt 0:00:09]} 44. f7+ {[%emt 0:02:05]} Rxf7 {[%emt 0:00:53]} 45. Bxf7+ {[%emt 0:00:00]} Kxf7 {[%emt 0:00:00]} 46. Rxd5 {[%emt 0:00:00]} c1=Q+ {[%emt 0:00:00]} 0-1

[Event "FIDE Chesscom Grand Swiss 2019"]
[Site "Douglas-Isle of Man"]
[Date "2019.10.20"]
[Round "10.30"]
[White "Iturrizaga Bonelli, Eduardo"]
[Black "Boruchovsky, Avital"]
[Result "1-0"]
[ECO "E12"]
[WhiteElo "2629"]
[BlackElo "2533"]
[Annotator "ChessBase"]
[PlyCount "101"]
[EventDate "2019.10.10"]
[EventType "swiss"]
[EventCountry "GBR"]
[SourceTitle "playchess.com"]
[Source "ChessBase"]
[SourceQuality "1"]
[TimeControl "40/6000+30:20/3000+30:900+30"]

1. c4 {[%emt 0:00:00]} b6 {[%emt 0:00:00]} 2. Nc3 {[%emt 0:00:41]} Bb7 {[%emt 0:00:15]} 3. d4 {[%emt 0:01:51]} e6 {[%emt 0:00:14]} 4. a3 {[%emt 0:00:08]} Nf6 {[%emt 0:02:40]} 5. Nf3 {[%emt 0:00:44]} Be7 {[%emt 0:03:11]} 6. d5 {[%emt 0:01:26]} O-O {[%emt 0:04:24]} 7. g3 {[%emt 0:03:44]} exd5 {[%emt 0:01:12]} 8. cxd5 {[%emt 0:00:06]} b5 {[%emt 0:06:42]} 9. Bg2 {[%emt 0:13:25]} b4 {[%emt 0:00:08]} 10. axb4 {[%emt 0:00:03]} Bxb4 {[%emt 0:00:06]} 11. Nh4 {[%emt 0:00:51]} d6 {[%emt 0:01:07]} 12. O-O {[%emt 0:05:19]} Nbd7 {[%emt 0:01:58]} 13. e4 {[%emt 0:09:21]} Re8 {[%emt 0:00:54]} 14. Re1 {[%emt 0:03:34]} Nc5 {[%emt 0:07:54]} 15. Nf5 {[%emt 0:01:15]} Qd7 {[%emt 0:09:41]} 16. Bh3 {[%emt 0:21:53]} Kh8 {[%emt 0:03:44]} 17. f3 {[%emt 0:00:29]} Bxc3 {[%emt 0:34:11]} 18. bxc3 {[%emt 0:00:07]} Qb5 {[%emt 0:00:25]} 19. Be3 {[%emt 0:09:33]} Nfd7 {[%emt 0:01:55]} 20. Rb1 {[%emt 0:01:55]} Qa6 {[%emt 0:01:29]} 21. Bd4 {[%emt 0:05:52]} f6 {[%emt 0:00:10]} 22. Bf1 {[%emt 0:01:34]} Qa5 {[%emt 0:00:11]} 23. Qc2 {[%emt 0:12:18]} Ne5 {[%emt 0:06:20]} 24. Be2 {[%emt 0:01:56]} a6 {[%emt 0:01:43]} 25. f4 {[%emt 0:07:46]} Ned7 {[%emt 0:00:12]} 26. Ra1 {[%emt 0:02:04]} Qb6 {[%emt 0:00:01]} 27. Reb1 {[%emt 0:00:06]} Qa7 {[%emt 0:00:04]} 28. Bf3 {[%emt 0:00:48]} a5 {[%emt 0:00:45]} 29. g4 {[%emt 0:00:20]} Rg8 {[%emt 0:07:43]} 30. Qg2 {[%emt 0:00:53]} g5 {[%emt 0:02:29]} 31. fxg5 {[%emt 0:03:00]} Rxg5 {[%emt 0:00:01]} 32. h4 {[%emt 0:00:20]} Rgg8 {[%emt 0:00:05]} 33. Kh2 {[%emt 0:00:55]} Ne5 {[%emt 0:00:05]} 34. Be2 {[%emt 0:01:15]} Rae8 {[%emt 0:01:21]} 35. g5 {[%emt 0:00:56]} Qa8 {[%emt 0:00:28]} 36. Rg1 {[%emt 0:00:56]} Ned7 {[%emt 0:10:04]} 37. Bb5 {[%emt 0:00:26]} c6 {[%emt 0:02:23]} 38. Nxd6 {[%emt 0:00:34]} Qb8 {[%emt 0:00:01]} 39. e5 {[%emt 0:00:24]} fxe5 {[%emt 0:00:53]} 40. Nf7+ {[%emt 0:00:40]} Kg7 {[%emt 0:00:01]} 41. Bxc5 {[%emt 0:05:57]} Nxc5 {[%emt 0:04:24]} 42. Qf1 {[%emt 0:06:29]} Ne4 {[%emt 0:02:18]} 43. h5 {[%emt 0:07:33]} cxb5 {[%emt 0:05:37]} 44. Qf5 {[%emt 0:02:03]} Qc8 {[%emt 0:04:58]} 45. Qxe4 {[%emt 0:01:57]} Qxc3 {[%emt 0:03:57]} 46. Raf1 {[%emt 0:04:27]} Qd2+ {[%emt 0:00:38]} 47. Rg2 {[%emt 0:00:05]} Qxd5 {[%emt 0:00:04]} 48. h6+ {[%emt 0:00:05]} Kf8 {[%emt 0:00:04]} 49. Nxe5+ {[%emt 0:00:10]} Ke7 {[%emt 0:00:05]} 50. Nc6+ {[%emt 0:00:43]} Kd6 {[%emt 0:00:04]} 51. Rf6+ {[%emt 0:00:04]} 1-0

[Event "FIDE Chesscom Grand Swiss 2019"]
[Site "Douglas-Isle of Man"]
[Date "2019.10.20"]
[Round "10.31"]
[White "Houska, Jovanka"]
[Black "Efimenko, Zahar"]
[Result "0-1"]
[ECO "A49"]
[WhiteElo "2430"]
[BlackElo "2604"]
[Annotator "ChessBase"]
[PlyCount "100"]
[EventDate "2019.10.10"]
[EventType "swiss"]
[EventCountry "GBR"]
[SourceTitle "playchess.com"]
[Source "ChessBase"]
[SourceQuality "1"]
[TimeControl "40/6000+30:20/3000+30:900+30"]

1. d4 {[%emt 0:00:00]} g6 {[%emt 0:00:16]} 2. Nf3 {[%emt 0:00:31]} Bg7 {[%emt 0:00:14]} 3. g3 {[%emt 0:00:48]} c5 {[%emt 0:00:30]} 4. c3 {[%emt 0:01:26]} Na6 {[%emt 0:04:05]} 5. Bg2 {[%emt 0:01:47]} Nf6 {[%emt 0:00:30]} 6. O-O {[%emt 0:00:12]} O-O {[%emt 0:00:27]} 7. a3 {[%emt 0:01:31]} b6 {[%emt 0:06:21]} 8. Ne5 {[%emt 0:05:42]} d5 {[%emt 0:01:04]} 9. b4 {[%emt 0:01:37]} Bb7 {[%emt 0:08:08]} 10. Bb2 {[%emt 0:04:24]} Nd7 {[%emt 0:04:46]} 11. c4 {[%emt 0:15:38]} Nxe5 {[%emt 0:13:07]} 12. dxe5 {[%emt 0:00:05]} e6 {[%emt 0:00:07]} 13. b5 {[%emt 0:06:16]} Nc7 {[%emt 0:00:35]} 14. a4 {[%emt 0:01:47]} a6 {[%emt 0:12:45]} 15. Na3 {[%emt 0:02:37]} axb5 {[%emt 0:02:39]} 16. axb5 {[%emt 0:03:05]} Ra7 {[%emt 0:08:22]} 17. Nc2 {[%emt 0:05:03]} Rxa1 {[%emt 0:04:30]} 18. Qxa1 {[%emt 0:04:09]} Qb8 {[%emt 0:00:33]} 19. Rd1 {[%emt 0:12:18]} dxc4 {[%emt 0:10:10]} 20. Qa4 {[%emt 0:01:05]} Bxg2 {[%emt 0:02:07]} 21. Kxg2 {[%emt 0:00:03]} Qa8+ {[%emt 0:01:52]} 22. Qxa8 {[%emt 0:00:54]} Rxa8 {[%emt 0:00:04]} 23. Ne3 {[%emt 0:00:37]} c3 {[%emt 0:02:03]} 24. Bxc3 {[%emt 0:00:15]} Nxb5 {[%emt 0:00:07]} 25. Bb2 {[%emt 0:03:11]} Nd4 {[%emt 0:01:24]} 26. Nc4 {[%emt 0:19:29]} b5 {[%emt 0:01:42]} 27. Nd6 {[%emt 0:00:28]} Nxe2 {[%emt 0:13:12]} 28. Nxb5 {[%emt 0:00:42]} Rb8 {[%emt 0:01:28]} 29. Rd2 {[%emt 0:00:05]} Rxb5 {[%emt 0:01:38]} 30. Rxe2 {[%emt 0:00:05]} Kf8 {[%emt 0:00:39]} 31. Kf3 {[%emt 0:00:48]} Ke8 {[%emt 0:00:31]} 32. Ke4 {[%emt 0:01:27]} Kd7 {[%emt 0:00:09]} 33. Bc3 {[%emt 0:00:03]} Rb3 {[%emt 0:02:38]} 34. Re3 {[%emt 0:03:35]} Kc6 {[%emt 0:00:59]} 35. Rf3 {[%emt 0:00:13]} Rb7 {[%emt 0:00:59]} 36. Rd3 {[%emt 0:00:12]} Bf8 {[%emt 0:02:29]} 37. Rd8 {[%emt 0:00:52]} Be7 {[%emt 0:00:03]} 38. Rh8 {[%emt 0:01:14]} h5 {[%emt 0:00:09]} 39. h3 {[%emt 0:01:27]} Kb5 {[%emt 0:03:04]} 40. g4 {[%emt 0:01:02]} h4 {[%emt 0:00:51]} 41. f4 {[%emt 0:51:10]} Kc4 {[%emt 0:52:21]} 42. Be1 {[%emt 0:01:55]} Kb3 {[%emt 0:00:00]} 43. f5 {[%emt 0:00:00]} gxf5+ {[%emt 0:00:00]} 44. gxf5 {[%emt 0:00:00]} exf5+ {[%emt 0:00:00]} 45. Kxf5 {[%emt 0:00:00]} c4 {[%emt 0:00:00]} 46. Rc8 {[%emt 0:00:00]} Rb5 {[%emt 0:00:00]} 47. Ke4 {[%emt 0:00:00]} f6 {[%emt 0:00:00]} 48. Bxh4 {[%emt 0:00:00]} f5+ {[%emt 0:00:00]} 49. Kxf5 {[%emt 0:00:00]} Bxh4 {[%emt 0:00:00]} 50. Kf4 {[%emt 0:00:00]} c3 {[%emt 0:00:00]} 0-1

[Event "FIDE Chesscom Grand Swiss 2019"]
[Site "Douglas-Isle of Man"]
[Date "2019.10.20"]
[Round "10.32"]
[White "Deac, Bogdan-Daniel"]
[Black "Kasimdzhanov, Rustam"]
[Result "1-0"]
[ECO "E06"]
[WhiteElo "2613"]
[BlackElo "2657"]
[Annotator "ChessBase"]
[PlyCount "123"]
[EventDate "2019.10.10"]
[EventType "swiss"]
[EventCountry "GBR"]
[SourceTitle "playchess.com"]
[Source "ChessBase"]
[SourceQuality "1"]
[TimeControl "40/6000+30:20/3000+30:900+30"]

1. d4 {[%emt 0:00:00]} Nf6 {[%emt 0:00:00]} 2. c4 {[%emt 0:00:00]} e6 {[%emt 0:00:00]} 3. Nf3 {[%emt 0:00:00]} d5 {[%emt 0:00:00]} 4. Nc3 {[%emt 0:00:00]} Be7 {[%emt 0:00:00]} 5. g3 {[%emt 0:03:51]} O-O {[%emt 0:01:27]} 6. Bg2 {[%emt 0:00:02]} dxc4 {[%emt 0:00:07]} 7. Ne5 {[%emt 0:00:05]} Nc6 {[%emt 0:00:06]} 8. Bxc6 {[%emt 0:00:06]} bxc6 {[%emt 0:00:04]} 9. Nxc6 {[%emt 0:00:10]} Qe8 {[%emt 0:00:07]} 10. Nxe7+ {[%emt 0:00:09]} Qxe7 {[%emt 0:00:07]} 11. Qa4 {[%emt 0:00:03]} c5 {[%emt 0:00:11]} 12. dxc5 {[%emt 0:00:14]} Qxc5 {[%emt 0:00:10]} 13. Be3 {[%emt 0:00:09]} Qc7 {[%emt 0:00:07]} 14. Rd1 {[%emt 0:03:46]} Bb7 {[%emt 0:05:42]} 15. O-O {[%emt 0:00:20]} Nd5 {[%emt 0:06:13]} 16. Bd4 {[%emt 0:09:30]} Rfd8 {[%emt 0:09:36]} 17. Nxd5 {[%emt 0:35:05]} Rxd5 {[%emt 0:00:29]} 18. Bc3 {[%emt 0:00:05]} Qc5 {[%emt 0:00:45]} 19. Rxd5 {[%emt 0:01:47]} Qxd5 {[%emt 0:02:07]} 20. f3 {[%emt 0:00:05]} Qc5+ {[%emt 0:00:28]} 21. Kg2 {[%emt 0:00:28]} e5 {[%emt 0:13:59]} 22. Rd1 {[%emt 0:09:51]} h6 {[%emt 0:00:24]} 23. Qd7 {[%emt 0:13:25]} Bc6 {[%emt 0:12:57]} 24. Qd6 {[%emt 0:00:10]} Qxd6 {[%emt 0:14:16]} 25. Rxd6 {[%emt 0:00:09]} Ba4 {[%emt 0:00:08]} 26. Ra6 {[%emt 0:03:05]} Bd7 {[%emt 0:10:37]} 27. Rd6 {[%emt 0:04:38]} Ba4 {[%emt 0:06:07]} 28. Ra6 {[%emt 0:03:09]} Bd7 {[%emt 0:00:10]} 29. e4 {[%emt 0:07:41]} f6 {[%emt 0:00:22]} 30. a4 {[%emt 0:00:10]} Bc8 {[%emt 0:10:26]} 31. Rd6 {[%emt 0:01:42]} a5 {[%emt 0:02:26]} 32. Kf2 {[%emt 0:06:33]} Bb7 {[%emt 0:03:35]} 33. Rb6 {[%emt 0:00:27]} Bc8 {[%emt 0:00:03]} 34. Rc6 {[%emt 0:00:07]} Bd7 {[%emt 0:00:39]} 35. Rxc4 {[%emt 0:00:06]} Rc8 {[%emt 0:04:52]} 36. Rxc8+ {[%emt 0:00:16]} Bxc8 {[%emt 0:00:01]} 37. Bxa5 {[%emt 0:00:08]} Bd7 {[%emt 0:00:05]} 38. b3 {[%emt 0:00:06]} Be6 {[%emt 0:00:03]} 39. b4 {[%emt 0:00:06]} Bb3 {[%emt 0:00:04]} 40. b5 {[%emt 0:00:04]} Bxa4 {[%emt 0:00:04]} 41. b6 {[%emt 0:50:05]} Bc6 {[%emt 0:50:07]} 42. g4 {[%emt 0:01:45]} g6 {[%emt 0:00:00]} 43. Bd2 {[%emt 0:00:00]} Kg7 {[%emt 0:00:00]} 44. Ke2 {[%emt 0:00:00]} Bb5+ {[%emt 0:00:00]} 45. Ke1 {[%emt 0:00:00]} Ba6 {[%emt 0:00:00]} 46. Be3 {[%emt 0:00:00]} Bb7 {[%emt 0:00:00]} 47. Ke2 {[%emt 0:00:00]} Ba6+ {[%emt 0:00:00]} 48. Kd2 {[%emt 0:00:00]} h5 {[%emt 0:00:00]} 49. g5 {[%emt 0:00:00]} Kf7 {[%emt 0:00:00]} 50. Ke1 {[%emt 0:00:00]} Ke6 {[%emt 0:03:09]} 51. gxf6 {[%emt 0:00:00]} Kxf6 {[%emt 0:00:07]} 52. Kf2 {[%emt 0:00:00]} Ke6 {[%emt 0:03:12]} 53. Kg3 {[%emt 0:00:00]} Kd7 {[%emt 0:02:42]} 54. Kh4 {[%emt 0:00:00]} Be2 {[%emt 0:03:29]} 55. Kg5 {[%emt 0:00:00]} Bxf3 {[%emt 0:02:01]} 56. Kxg6 {[%emt 0:00:00]} Ke6 {[%emt 0:00:08]} 57. h4 {[%emt 0:00:00]} Bxe4+ {[%emt 0:01:23]} 58. Kxh5 {[%emt 0:00:00]} Kf5 {[%emt 0:00:07]} 59. Kh6 {[%emt 0:00:00]} Kg4 {[%emt 0:03:30]} 60. Bf2 {[%emt 0:00:00]} Bb7 {[%emt 0:00:14]} 61. Kg6 {[%emt 0:11:55]} e4 {[%emt 0:15:12]} 62. Kf6 {[%emt 0:00:05]} 1-0